bitfinex-derivatives/quotes_BTCF0:USTF0_20250506
["timestamp","ask_amount","ask_price","bid_price","bid_amount"]
[1746547113122,0.3094007,94667.0,94666.0,0.36870362]
[1746547113823,0.3094007,94667.0,94666.0,0.15740292]
[1746547114216,0.2113164,94659.0,94658.0,0.42283466]
[1746547114424,0.2113164,94659.0,94658.0,0.2641432]
[1746547114809,0.2113164,94659.0,94658.0,0.42283466]
[1746547115010,0.2764164,94659.0,94658.0,0.42283466]
[1746547116421,0.2764164,94659.0,94633.0,0.0528433]
[1746547116422,0.2113521,94643.0,94633.0,0.0528433]
[1746547116619,0.9991121,94643.0,94629.0,0.06616]
[1746547116929,0.2113767,94632.0,94631.0,0.37916232]
[1746547117223,0.7501767,94632.0,94631.0,0.53811276]
[1746547117518,0.7501767,94632.0,94631.0,0.54870851]
[1746547117916,0.8161767,94632.0,94631.0,0.54870851]
[1746547118116,0.8161767,94632.0,94631.0,0.33732961]
[1746547118315,0.92184871,94632.0,94631.0,0.15998455]
[1746547119525,0.92184871,94632.0,94625.0,0.0010568]
[1746547119526,0.2113901,94626.0,94625.0,0.0010568]
[1746547119716,0.2775501,94626.0,94625.0,0.0010568]
[1746547120118,0.4555501,94626.0,94625.0,0.0010568]
[1746547120417,0.5192501,94626.0,94625.0,0.0010568]
[1746547121222,0.5192501,94626.0,94625.0,0.2124491]
[1746547122927,0.5192501,94626.0,94625.0,0.0010568]
[1746547123131,0.3412501,94626.0,94625.0,0.0010568]
[1746547123431,0.3412501,94626.0,94625.0,0.2124491]
[1746547125531,0.3412501,94626.0,94625.0,0.0010568]
[1746547125922,0.4469301,94626.0,94625.0,0.0010568]
[1746547126128,0.6249301,94626.0,94625.0,0.0010568]
[1746547140737,0.5587701,94626.0,94625.0,0.0010568]
[1746547140935,0.5192501,94626.0,94625.0,0.0010568]
[1746547141144,0.3412501,94626.0,94625.0,0.0010568]
[1746547142143,0.5192501,94626.0,94625.0,0.0010568]
[1746547145045,0.5192501,94626.0,94615.0,0.0305]
[1746547145046,0.0528499,94622.0,94615.0,0.0305]
[1746547145243,0.5722124,94616.0,94615.0,0.0305]
[1746547146343,0.6379124,94616.0,94615.0,0.0305]
[1746547147148,0.8159124,94616.0,94615.0,0.0305]
[1746547148340,0.6379124,94616.0,94615.0,0.0305]
[1746547148834,0.6379124,94616.0,94615.0,0.0627]
[1746547150950,0.2114303,94608.0,94607.0,0.0015855]
[1746547151243,0.8163503,94608.0,94607.0,0.0015855]
[1746547151850,0.8818503,94608.0,94607.0,0.0015855]
[1746547152243,0.7038503,94608.0,94607.0,0.0015855]
[1746547153347,0.8818503,94608.0,94607.0,0.0015855]
[1746547159056,0.2114571,94596.0,94566.0,0.26405444]
[1746547159251,0.2114571,94596.0,94594.0,0.0307]
[1746547159646,0.2743571,94596.0,94594.0,0.0307]
[1746547160052,0.4523571,94596.0,94594.0,0.0307]
[1746547161253,0.2743571,94596.0,94594.0,0.0307]
[1746547166454,0.28240734,94596.0,94594.0,0.0307]
[1746547167460,0.28240734,94596.0,94594.0,0.0619]
[1746547168056,0.28240734,94596.0,94595.0,0.06395713]
[1746547168861,0.28240734,94596.0,94595.0,0.03275713]
[1746547169460,0.28240734,94596.0,94595.0,0.00105713]
[1746547173357,0.34848734,94596.0,94595.0,0.00105713]
[1746547174468,0.36215374,94596.0,94595.0,0.00105713]
[1746547177873,0.29607374,94596.0,94595.0,0.00105713]
[1746547178074,0.36215374,94596.0,94595.0,0.00105713]
[1746547178376,0.29607374,94596.0,94595.0,0.00105713]
[1746547178567,0.33145374,94596.0,94595.0,0.00105713]
[1746547180674,0.36425374,94596.0,94595.0,0.00105713]
[1746547181574,0.72505374,94596.0,94595.0,0.00105713]
[1746547183268,0.62617374,94596.0,94595.0,0.00105713]
[1746547183472,0.59397374,94596.0,94595.0,0.21251643]
[1746547183775,0.2912035,94596.0,94595.0,0.37053575]
[1746547184170,0.2912035,94596.0,94595.0,0.54853575]
[1746547184477,0.2912035,94596.0,94595.0,0.61173575]
[1746547184775,0.2251235,94596.0,94595.0,0.61173575]
[1746547184978,0.2912035,94596.0,94595.0,2.11173575]
[1746547192878,0.0797464,94596.0,94595.0,2.47253575]
[1746547195180,0.2911635,94596.0,94595.0,2.47253575]
[1746547195883,0.0797064,94596.0,94595.0,2.47253575]
[1746547196978,0.0136664,94596.0,94595.0,2.57824775]
[1746547197188,0.0797064,94596.0,94595.0,2.57824775]
[1746547197482,0.0136664,94596.0,94595.0,2.57824775]
[1746547197687,0.2642868,94610.0,94609.0,0.2114258]
[1746547197881,0.3303268,94610.0,94609.0,0.2114258]
[1746547198487,0.3608268,94610.0,94609.0,0.2114258]
[1746547198678,0.3941268,94610.0,94609.0,0.2114258]
[1746547199585,0.09934,94610.0,94609.0,0.2114258]
[1746547199786,0.5722191,94614.0,94613.0,0.2114191]
[1746547199981,0.6382591,94614.0,94613.0,0.2114191]
[1746547200593,0.0305,94619.0,94613.0,0.15813528]
[1746547200987,0.0305,94619.0,94612.0,0.15813528]
[1746547201289,0.2433128,94618.0,94617.0,0.2114079]
[1746547201589,0.3093528,94618.0,94617.0,0.36971308]
[1746547201790,0.3418528,94618.0,94617.0,0.36971308]
[1746547201990,0.3418528,94618.0,94617.0,1.86971308]
[1746547203185,0.2433128,94618.0,94617.0,1.86971308]
[1746547203386,0.0015,94625.0,94617.0,1.65830518]
[1746547203893,0.0015,94625.0,94620.0,0.3608]
[1746547204285,0.2642526,94622.0,94621.0,0.15801668]
[1746547204485,0.2642526,94622.0,94621.0,0.16601118]
[1746547205092,0.2642526,94622.0,94621.0,0.43025828]
[1746547205294,0.2114012,94622.0,94621.0,0.43025828]
[1746547205488,0.2774012,94622.0,94621.0,0.37741238]
[1746547206192,0.2774012,94622.0,94621.0,0.16601118]
[1746547206588,0.5274012,94622.0,94621.0,0.15801668]
[1746547206893,0.2114437,94602.0,94601.0,0.00800243]
[1746547207088,0.2114571,94596.0,94587.0,1.72226462]
[1746547207288,0.2114571,94596.0,94587.0,1.7114764]
[1746547207489,0.2114571,94596.0,94587.0,1.5]
[1746547207793,0.2114571,94596.0,94593.0,0.0528658]
[1746547207997,0.2114571,94596.0,94593.0,0.2114635]
[1746547208294,0.3894571,94596.0,94595.0,0.21251643]
[1746547208495,0.4554571,94596.0,94595.0,0.21251643]
[1746547209194,0.2774571,94596.0,94595.0,0.21251643]
[1746547209490,0.6382571,94596.0,94595.0,0.00879607]
[1746547209792,0.2774571,94596.0,94595.0,0.00879607]
[1746547209996,0.2774571,94596.0,94595.0,0.22025537]
[1746547211591,0.2114571,94596.0,94595.0,0.22025537]
[1746547211799,0.2774571,94596.0,94595.0,0.22025537]
[1746547212499,0.066,94596.0,94595.0,0.22025537]
[1746547212705,0.2774571,94596.0,94595.0,0.22025537]
[1746547212993,0.4136516,94619.0,94603.0,0.2114415]
[1746547212994,0.2114496,94604.0,94603.0,0.2114415]
[1746547213185,0.066,94607.0,94605.0,0.0528592]
[1746547213390,0.2114046,94620.0,94619.0,0.2114012]
[1746547213592,0.277403,94621.0,94620.0,0.2114035]
[1746547213891,0.066,94621.0,94620.0,2.23136565]
[1746547214085,0.0015,94625.0,94620.0,2.23136565]
[1746547214086,0.0015,94625.0,94624.0,0.2113945]
[1746547214689,0.0015,94625.0,94624.0,0.3170745]
[1746547214891,0.0015,94625.0,94624.0,0.4750648]
[1746547215096,0.0015,94625.0,94624.0,0.5473848]
[1746547215891,0.2128923,94625.0,94624.0,0.6530648]
[1746547216199,0.2128923,94625.0,94624.0,0.5473848]
[1746547216399,0.2128923,94625.0,94624.0,0.5803848]
[1746547216698,0.2128923,94625.0,94624.0,0.59065266]
[1746547217390,0.0015,94625.0,94624.0,0.59065266]
[1746547218094,0.2128923,94625.0,94624.0,0.59065266]
[1746547218696,0.0015,94625.0,94624.0,0.59065266]
[1746547219293,0.0339,94625.0,94624.0,0.59065266]
[1746547219997,0.2452923,94625.0,94624.0,0.59065266]
[1746547220198,0.0339,94625.0,94624.0,0.59065266]
[1746547220500,0.0015,94625.0,94624.0,0.59065266]
[1746547221796,0.0015,94625.0,94624.0,0.95145266]
[1746547223905,0.16173156,94657.0,94625.0,0.052848]
[1746547224098,0.0302,94634.0,94633.0,0.2113744]
[1746547224297,0.0302,94634.0,94633.0,0.5721744]
[1746547224497,0.0302,94634.0,94633.0,0.72968032]
[1746547224697,0.0302,94634.0,94633.0,0.79458032]
[1746547225906,0.0302,94634.0,94633.0,2.29458032]
[1746547226305,0.0964,94638.0,94637.0,0.2113655]
[1746547226306,0.0304,94638.0,94637.0,0.2113655]
[1746547226603,0.0538312,94656.0,94649.0,0.2113387]
[1746547226809,0.0302,94649.0,94648.0,0.2113409]
[1746547227309,0.0302,94649.0,94648.0,0.73158863]
[1746547227503,0.0302,94649.0,94648.0,2.29658863]
[1746547227708,0.2415387,94649.0,94648.0,2.30469837]
[1746547228011,0.2733387,94649.0,94648.0,2.30469837]
[1746547228393,0.2733387,94649.0,94648.0,2.27179837]
[1746547229710,0.2733387,94649.0,94648.0,2.23969837]
[1746547230401,0.2733387,94649.0,94648.0,2.02835747]
[1746547231000,0.2733387,94649.0,94648.0,0.52835747]
[1746547231201,0.4513387,94649.0,94648.0,0.52835747]
[1746547231603,0.4513387,94649.0,94648.0,0.73969837]
[1746547231804,0.5172987,94649.0,94648.0,0.73969837]
[1746547232206,0.3392987,94649.0,94648.0,0.73969837]
[1746547233299,0.2733387,94649.0,94648.0,0.73969837]
[1746547233495,0.3393387,94649.0,94648.0,0.73969837]
[1746547233699,0.3393387,94649.0,94648.0,2.30219837]
[1746547234910,0.3393387,94649.0,94648.0,2.27189837]
[1746547235811,0.128,94649.0,94648.0,2.27189837]
[1746547236408,0.128,94649.0,94648.0,2.30199837]
[1746547237412,0.001,94656.0,94655.0,0.2113253]
[1746547237716,0.067,94656.0,94655.0,0.2113253]
[1746547239708,0.001,94656.0,94655.0,0.36883151]
[1746547239922,0.001,94656.0,94655.0,0.40033151]
[1746547240901,0.0342,94656.0,94655.0,0.40033151]
[1746547241106,0.0659,94656.0,94655.0,0.40033151]
[1746547241712,0.0659,94656.0,94655.0,1.86883151]
[1746547242709,0.0659,94656.0,94655.0,1.87919932]
[1746547243413,0.096,94656.0,94655.0,1.87919932]
[1746547244209,0.096,94656.0,94655.0,0.37919932]
[1746547244402,0.16212,94656.0,94655.0,0.37919932]
[1746547245516,0.16212,94656.0,94655.0,0.2113253]
[1746547245517,0.3734431,94656.0,94655.0,0.2113253]
[1746547245712,0.052834,94651.0,94648.0,0.00810974]
[1746547245911,0.0528331,94652.0,94646.0,0.08456971]
[1746547245912,0.2113432,94647.0,94646.0,0.08456971]
[1746547246111,0.2641951,94643.0,94642.0,0.0528385]
[1746547246312,0.6249951,94643.0,94642.0,0.0528385]
[1746547247208,0.8029951,94643.0,94642.0,0.0528385]
[1746547247507,0.9086551,94643.0,94642.0,0.0528385]
[1746547247715,0.9726551,94643.0,94642.0,0.2641928]
[1746547248417,0.9726551,94643.0,94642.0,0.2113543]
[1746547249617,1.0387351,94643.0,94642.0,0.2113543]
[1746547251620,0.66892,94643.0,94642.0,0.2113543]
[1746547251918,0.30816,94643.0,94642.0,0.2437543]
[1746547252113,0.30816,94643.0,94642.0,0.3058543]
[1746547252304,0.13016,94643.0,94642.0,0.3058543]
[1746547253618,0.13016,94643.0,94642.0,0.2757543]
[1746547253813,0.13016,94643.0,94642.0,0.2437543]
[1746547254717,0.13016,94643.0,94642.0,0.2760543]
[1746547255620,0.13016,94643.0,94642.0,0.2437543]
[1746547256819,0.13016,94643.0,94642.0,0.2113543]
[1746547257022,0.13016,94643.0,94642.0,0.2423543]
[1746547258423,0.7023121,94643.0,94642.0,0.2423543]
[1746547259421,0.7023121,94643.0,94642.0,0.2113543]
[1746547260119,0.21137,94635.0,94634.0,0.07396]
[1746547260421,0.57217,94635.0,94634.0,0.2113722]
[1746547261121,0.81427,94635.0,94634.0,0.2113722]
[1746547262721,0.81427,94635.0,94595.0,0.00105713]
[1746547262722,0.70856801,94635.0,94595.0,0.00105713]
[1746547262921,0.2642593,94624.0,94623.0,0.2113945]
[1746547263120,0.5611507,94624.0,94623.0,0.2113945]
[1746547263311,0.6238507,94624.0,94623.0,0.2113945]
[1746547264430,0.2114079,94618.0,94617.0,0.3382383]
[1746547264619,0.2114079,94618.0,94617.0,0.285386]
[1746547264825,0.3170959,94618.0,94617.0,0.285386]
[1746547265123,0.4950959,94618.0,94617.0,0.07398]
[1746547265619,0.4950959,94618.0,94608.0,0.0528573]
[1746547265620,0.2114303,94609.0,94608.0,0.0528573]
[1746547265812,0.2114303,94608.0,94601.0,0.00158558]
[1746547266016,0.4120303,94608.0,94601.0,0.00158558]
[1746547266728,0.4120303,94608.0,94600.0,0.052862]
[1746547267126,0.5900303,94608.0,94607.0,0.213018]
[1746547267420,0.5900303,94608.0,94607.0,0.0015855]
[1746547267817,0.5900303,94608.0,94607.0,0.213018]
[1746547268214,0.9508303,94608.0,94607.0,0.0015855]
[1746547268418,0.2643207,94598.0,94597.0,0.2114542]
[1746547268622,0.6251207,94598.0,94597.0,0.2114542]
[1746547268930,0.6908207,94598.0,94597.0,0.2114542]
[1746547269122,0.8688207,94598.0,94597.0,0.2114542]
[1746547269527,0.8688207,94598.0,94588.0,0.12686]
[1746547269528,0.2114571,94596.0,94588.0,0.12686]
[1746547269827,0.2774971,94596.0,94588.0,0.12686]
[1746547270227,0.4554971,94596.0,94595.0,0.21251643]
[1746547270416,0.178,94596.0,94595.0,0.21251643]
[1746547270622,0.24408,94596.0,94595.0,0.21251643]
[1746547271026,0.2036424,94596.0,94595.0,0.68760555]
[1746547271228,0.06608,94596.0,94595.0,0.61560555]
[1746547271428,0.06608,94596.0,94595.0,2.11560555]
[1746547271620,0.3608,94608.0,94607.0,0.2114325]
[1746547271929,0.42692,94608.0,94607.0,0.2114325]
[1746547272427,0.6383503,94608.0,94607.0,0.2114325]
[1746547272731,0.6383503,94608.0,94607.0,0.2755325]
[1746547273123,0.42692,94608.0,94607.0,0.2755325]
[1746547273328,0.6383503,94608.0,94607.0,0.2755325]
[1746547273630,0.6694503,94608.0,94607.0,0.2423325]
[1746547274129,0.8474503,94608.0,94607.0,0.2423325]
[1746547276022,0.8474503,94608.0,94607.0,0.2114325]
[1746547276630,0.63602,94608.0,94607.0,0.2114325]
[1746547277136,0.42692,94608.0,94607.0,0.2114325]
[1746547277332,0.42692,94608.0,94607.0,0.2750325]
[1746547277533,0.42684,94608.0,94607.0,0.2750325]
[1746547278332,0.4268,94608.0,94607.0,0.2750325]
[1746547278936,0.6382303,94608.0,94607.0,0.2750325]
[1746547279131,0.6382303,94608.0,94607.0,0.2435325]
[1746547279731,0.6382303,94608.0,94607.0,0.2114325]
[1746547280236,0.8162303,94608.0,94607.0,0.2114325]
[1746547280437,0.2114415,94604.0,94602.0,0.0311]
[1746547280736,0.6342415,94603.0,94602.0,0.2114437]
[1746547280943,0.6653415,94603.0,94602.0,0.2114437]
[1746547281246,0.6653415,94603.0,94602.0,0.2425437]
[1746547281247,0.8433415,94603.0,94602.0,0.2425437]
[1746547282642,0.2114437,94602.0,94601.0,0.2114456]
[1746547283025,0.264318,94599.0,94598.0,0.2114512]
[1746547283440,0.325418,94599.0,94598.0,0.2114512]
[1746547284140,0.503418,94599.0,94598.0,0.2114512]
[1746547287356,0.325418,94599.0,94598.0,0.2114512]
[1746547290045,0.2725549,94599.0,94598.0,0.2114512]
[1746547290249,0.2725549,94599.0,94598.0,0.2753512]
[1746547291656,0.3608,94603.0,94601.0,0.2114437]
[1746547291859,0.3608,94603.0,94602.0,0.2743437]
[1746547291860,0.5722434,94603.0,94602.0,0.2743437]
[1746547292159,0.7045434,94603.0,94602.0,0.2743437]
[1746547294862,0.7045434,94603.0,94602.0,0.2416437]
[1746547295457,0.6379434,94603.0,94602.0,0.2416437]
[1746547295763,0.7045834,94603.0,94602.0,0.2416437]
[1746547296655,0.7045834,94603.0,94602.0,0.0302]
[1746547296856,0.2114571,94597.0,94596.0,0.2114547]
[1746547297051,0.2114571,94596.0,94595.0,0.00105713]
[1746547297356,0.2766571,94596.0,94595.0,0.21251643]
[1746547298164,0.4546571,94596.0,94595.0,0.21251643]
[1746547298465,0.4546571,94596.0,94595.0,0.00105713]
[1746547299367,0.4546571,94596.0,94595.0,0.21251643]
[1746547300265,0.2766571,94596.0,94595.0,0.21251643]
[1746547305568,0.211449,94600.0,94599.0,0.2114482]
[1746547305769,0.277809,94600.0,94599.0,0.3083482]
[1746547311561,0.277889,94600.0,94599.0,0.3083482]
[1746547316970,0.277769,94600.0,94599.0,0.3083482]
[1746547319574,0.341269,94600.0,94599.0,0.2764482]
[1746547320875,0.341269,94600.0,94599.0,0.3084482]
[1746547321074,0.2777682,94600.0,94599.0,0.3084482]
[1746547321466,0.3608,94603.0,94599.0,0.097]
[1746547321661,0.3608,94603.0,94602.0,0.2114437]
[1746547321862,0.05285,94622.0,94611.0,0.2114236]
[1746547322076,0.22805156,94612.0,94611.0,0.3894236]
[1746547322569,0.22809156,94612.0,94611.0,0.3894236]
[1746547322771,0.22809156,94612.0,94611.0,0.4537236]
[1746547324664,0.43951286,94612.0,94611.0,0.4214236]
[1746547324871,0.2777813,94612.0,94611.0,0.4214236]
[1746547325177,0.2777813,94612.0,94611.0,0.2434236]
[1746547325375,0.2777813,94612.0,94611.0,0.2735236]
[1746547325677,0.3083813,94612.0,94611.0,0.2735236]
[1746547326186,0.2777813,94612.0,94611.0,0.2735236]
[1746547327169,0.3094813,94612.0,94611.0,0.2735236]
[1746547329066,0.3094813,94612.0,94611.0,0.2434236]
[1746547331480,0.44408294,94612.0,94611.0,0.2434236]
[1746547332375,0.23266164,94612.0,94609.0,0.0792768]
[1746547332680,0.2114258,94610.0,94609.0,0.2378467]
[1746547332976,0.2114258,94610.0,94609.0,0.2114267]
[1746547333178,0.2421258,94610.0,94609.0,0.2114267]
[1746547333382,0.211428,94609.0,94608.0,0.02642]
[1746547333688,0.241828,94609.0,94608.0,0.02642]
[1746547333980,0.2114415,94603.0,94602.0,0.2114431]
[1746547334180,0.5722415,94603.0,94602.0,0.2114431]
[1746547334681,0.2643124,94601.0,94600.0,0.2114472]
[1746547335180,0.3255124,94601.0,94600.0,0.2114472]
[1746547335584,0.2114504,94599.0,94598.0,0.2378712]
[1746547336586,0.2114504,94599.0,94598.0,0.02642]
[1746547336978,0.2114504,94599.0,94598.0,0.2378726]
[1746547338377,0.2778504,94599.0,94598.0,0.2378726]
[1746547340990,0.2778504,94599.0,94598.0,0.02642]
[1746547341286,0.2778504,94599.0,94598.0,0.2378726]
[1746547343382,0.3405304,94599.0,94598.0,0.2378726]
[1746547344188,0.3405304,94599.0,94598.0,0.02642]
[1746547345191,0.3405304,94599.0,94598.0,0.2378726]
[1746547345781,0.3405304,94599.0,94598.0,0.02642]
[1746547348183,0.3405304,94599.0,94598.0,0.2378726]
[1746547349087,0.06624,94599.0,94598.0,0.02642]
[1746547349294,0.2776904,94599.0,94598.0,0.2907352]
[1746547349589,0.2776904,94599.0,94598.0,0.2682726]
[1746547350290,0.06624,94599.0,94598.0,0.2682726]
[1746547350890,0.13456307,94601.0,94600.0,0.2114482]
[1746547351285,0.20080307,94601.0,94600.0,0.2114482]
[1746547351484,0.20080307,94601.0,94600.0,0.36936306]
[1746547351681,0.41224897,94601.0,94600.0,0.36936306]
[1746547351886,0.41224897,94601.0,94600.0,1.86936306]
[1746547352097,0.20080307,94601.0,94600.0,2.04736306]
[1746547352286,0.20088307,94601.0,94600.0,2.04736306]
[1746547352690,0.06632,94601.0,94600.0,2.04736306]
[1746547352892,0.2777659,94601.0,94600.0,0.54736306]
[1746547353487,0.2114459,94601.0,94600.0,0.54736306]
[1746547353691,0.2777659,94601.0,94600.0,0.54736306]
[1746547354085,0.3404659,94601.0,94600.0,0.36936306]
[1746547354698,0.3404659,94601.0,94600.0,0.15791486]
[1746547354885,0.3933278,94601.0,94600.0,0.2114482]
[1746547355085,0.7541278,94601.0,94600.0,0.2114482]
[1746547356785,0.3404659,94601.0,94600.0,0.2732482]
[1746547356993,0.2777659,94601.0,94600.0,0.2732482]
[1746547359196,0.3077659,94601.0,94600.0,0.2732482]
[1746547361299,0.3077659,94601.0,94600.0,0.2418482]
[1746547362594,0.3077659,94601.0,94600.0,0.0304]
[1746547362900,0.3077659,94601.0,94600.0,0.2418482]
[1746547364002,0.46949746,94601.0,94600.0,0.2418482]
[1746547365297,0.43949746,94601.0,94600.0,0.2418482]
[1746547365904,0.43949746,94601.0,94600.0,0.2724482]
[1746547367407,0.2777659,94601.0,94600.0,0.2724482]
[1746547368097,0.3083659,94601.0,94600.0,0.2724482]
[1746547368293,0.3411659,94601.0,94600.0,0.2724482]
[1746547368499,0.3411659,94601.0,94600.0,0.0304]
[1746547369904,0.3411659,94601.0,94600.0,0.2418482]
[1746547372706,0.3411659,94601.0,94600.0,0.2735482]
[1746547374710,0.2748459,94601.0,94600.0,0.2735482]
[1746547374912,0.3413659,94601.0,94600.0,0.2735482]
[1746547376704,0.3107659,94601.0,94600.0,0.2735482]
[1746547376908,0.2779659,94601.0,94600.0,0.3039482]
[1746547379028,0.2779659,94601.0,94600.0,0.2418482]
[1746547380519,0.2779659,94601.0,94600.0,0.2718482]
[1746547381125,0.2114482,94600.0,94599.0,0.05284]
[1746547381320,0.3074482,94600.0,94599.0,0.0304]
[1746547386633,0.2114504,94599.0,94598.0,0.12683]
[1746547387131,0.2733504,94599.0,94598.0,0.12683]
[1746547388027,0.2733504,94599.0,94598.0,0.3382826]
[1746547388423,0.2733504,94599.0,94598.0,0.12683]
[1746547390333,0.0528684,94589.0,94579.0,0.0528734]
[1746547390539,0.2114817,94585.0,94584.0,0.2427839]
[1746547390839,0.6387617,94585.0,94584.0,0.2427839]
[1746547392435,0.6387617,94585.0,94584.0,0.0313]
[1746547394436,0.7032617,94585.0,94584.0,0.0313]
[1746547394734,0.0528748,94578.0,94573.0,0.0312]
[1746547394932,0.5723018,94576.0,94575.0,0.2929232]
[1746547395333,0.6053018,94576.0,94575.0,0.08142]
[1746547396137,0.6368018,94576.0,94575.0,0.08142]
[1746547396336,0.6368018,94576.0,94575.0,0.07426]
[1746547396930,0.6368018,94576.0,94575.0,0.07401]
[1746547397639,0.7031218,94576.0,94575.0,0.07401]
[1746547397940,0.2115085,94573.0,94566.0,0.0332]
[1746547398132,0.2115085,94573.0,94568.0,0.0333]
[1746547401843,0.2115085,94573.0,94565.0,0.00105747]
[1746547402041,0.2115085,94573.0,94566.0,0.0319]
[1746547402239,0.3172485,94573.0,94565.0,0.00105747]
[1746547403142,0.4952485,94573.0,94565.0,0.00105747]
[1746547404846,0.4952485,94573.0,94550.0,0.00025]
[1746547404847,0.052883,94563.0,94550.0,0.00025]
[1746547405141,0.9331577,94551.0,94550.0,0.00025]
[1746547405943,0.6329577,94551.0,94550.0,0.00025]
[1746547406344,0.6329577,94551.0,94550.0,0.17825]
[1746547407736,0.6329577,94551.0,94550.0,0.178]
[1746547410352,0.2115622,94549.0,94548.0,0.0649]
[1746547411141,0.2115622,94549.0,94548.0,0.2429]
[1746547415348,0.5723622,94549.0,94548.0,0.2429]
[1746547419648,0.5723622,94549.0,94548.0,0.4544645]
[1746547419850,0.5723622,94549.0,94548.0,0.2108]
[1746547420049,0.58302581,94549.0,94548.0,0.2108]
[1746547420252,0.58302581,94549.0,94548.0,0.0328]
[1746547420448,0.64662581,94549.0,94548.0,0.0328]
[1746547421643,0.6359622,94549.0,94548.0,0.0328]
[1746547425650,0.2115779,94542.0,94541.0,0.05461]
[1746547425850,0.5723779,94542.0,94541.0,0.05461]
[1746547426045,0.2115846,94539.0,94538.0,0.0317]
[1746547426954,0.2115846,94539.0,94537.0,0.00158667]
[1746547426955,0.2115868,94538.0,94537.0,0.00158667]
[1746547428256,0.2115868,94538.0,94537.0,0.03448667]
[1746547428963,0.2115868,94538.0,94537.0,0.00158667]
[1746547429149,0.2781468,94538.0,94537.0,0.00158667]
[1746547430756,0.3417468,94538.0,94537.0,0.00158667]
[1746547431053,0.3106468,94538.0,94537.0,0.21317577]
[1746547431259,0.2792268,94538.0,94537.0,0.24387577]
[1746547432064,0.2792268,94538.0,94537.0,0.42187577]
[1746547433057,0.3117268,94538.0,94537.0,0.42187577]
[1746547433964,0.2440868,94538.0,94537.0,0.42187577]
[1746547434168,0.3116468,94538.0,94537.0,0.42187577]
[1746547435368,0.3116468,94538.0,94537.0,0.21028667]
[1746547435761,0.3116468,94538.0,94537.0,0.42187577]
[1746547436271,0.3116468,94538.0,94537.0,0.21028667]
[1746547436663,0.3116468,94538.0,94537.0,0.45447577]
[1746547437068,0.3116468,94538.0,94537.0,0.24288667]
[1746547439067,0.3116468,94538.0,94537.0,0.45447577]
[1746547440571,0.2791468,94538.0,94537.0,0.45447577]
[1746547442881,0.3934,94542.0,94537.0,0.45447577]
[1746547442882,0.39528743,94559.0,94539.0,0.0528956]
[1746547443184,0.36238743,94559.0,94542.0,0.2115779]
[1746547443386,0.36238743,94559.0,94542.0,0.2515779]
[1746547443387,0.20230942,94543.0,94542.0,0.2515779]
[1746547443684,0.20230942,94543.0,94542.0,1.90976335]
[1746547444185,0.20230942,94543.0,94542.0,2.10986335]
[1746547446177,0.0676,94543.0,94542.0,2.52716335]
[1746547446881,0.2791756,94543.0,94542.0,2.52716335]
[1746547450382,0.0676,94543.0,94542.0,2.52716335]
[1746547450578,0.2421735,94544.0,94543.0,0.2115756]
[1746547450786,0.3096935,94544.0,94543.0,0.2750756]
[1746547451088,0.3096935,94544.0,94543.0,0.61258965]
[1746547451783,0.3096934,94544.0,94543.0,0.61258965]
[1746547451984,0.09812,94544.0,94543.0,0.61258965]
[1746547452291,0.09812,94544.0,94543.0,1.02988965]
[1746547452493,0.3096934,94544.0,94543.0,1.02988965]
[1746547453181,0.09812,94544.0,94543.0,1.02988965]
[1746547453382,0.2790934,94544.0,94543.0,1.02988965]
[1746547456287,0.16161977,94558.0,94550.0,0.21156]
[1746547456489,0.2115245,94566.0,94550.0,0.21156]
[1746547456490,0.42962,94590.0,94582.0,0.2114884]
[1746547456689,0.46625917,94583.0,94582.0,0.2114884]
[1746547456988,0.39889917,94583.0,94582.0,0.2114884]
[1746547457180,0.25481297,94583.0,94582.0,0.6287884]
[1746547457585,0.25481297,94583.0,94582.0,2.1287884]
[1746547457893,0.18741297,94583.0,94582.0,2.1902884]
[1746547458089,0.25489297,94583.0,94582.0,2.3682884]
[1746547458289,0.18741297,94583.0,94582.0,2.6429628]
[1746547458486,0.25485297,94583.0,94582.0,2.6429628]
[1746547458989,0.18741297,94583.0,94582.0,2.6429628]
[1746547459197,0.06744,94589.0,94586.0,0.2114795]
[1746547459497,0.06744,94589.0,94586.0,0.3272035]
[1746547459798,0.06744,94589.0,94586.0,0.48553571]
[1746547460087,0.06744,94589.0,94586.0,0.66353571]
[1746547460592,0.06744,94589.0,94586.0,2.16353571]
[1746547461585,0.06744,94589.0,94588.0,0.211475]
[1746547461895,0.08629007,94627.0,94601.0,0.2114459]
[1746547461896,0.0528556,94612.0,94601.0,0.2114459]
[1746547462089,0.06894646,94602.0,94601.0,0.8067459]
[1746547462283,0.06894646,94602.0,94601.0,2.66677674]
[1746547462684,0.00158646,94602.0,94601.0,2.66677674]
[1746547462883,0.0628,94610.0,94609.0,0.211428]
[1746547463098,0.0975,94610.0,94609.0,0.211428]
[1746547463297,0.0975,94610.0,94609.0,0.389428]
[1746547463702,0.0975,94610.0,94609.0,0.454128]
[1746547464397,0.1297,94610.0,94609.0,0.454128]
[1746547464697,0.3411258,94610.0,94609.0,0.454128]
[1746547465089,0.3411258,94610.0,94609.0,1.954128]
[1746547467098,0.3411258,94610.0,94609.0,2.193428]
[1746547468090,0.3411258,94610.0,94609.0,2.160928]
[1746547471496,0.3411258,94610.0,94609.0,2.128728]
[1746547473494,0.2737258,94610.0,94609.0,2.128728]
[1746547473695,0.3409258,94610.0,94609.0,2.128728]
[1746547484812,0.7017258,94610.0,94609.0,1.9173]
[1746547485013,0.7017258,94610.0,94609.0,0.4173]
[1746547485200,0.2114437,94603.0,94602.0,0.0528605]
[1746547485603,0.2766437,94603.0,94602.0,0.0528605]
[1746547485805,0.2114437,94602.0,94601.0,0.57605206]
[1746547486006,0.5722437,94602.0,94601.0,0.4173]
[1746547486309,1.18150433,94602.0,94601.0,0.4173]
[1746547486512,0.2114817,94585.0,94584.0,0.0528709]
[1746547486706,0.6394817,94585.0,94584.0,0.0528709]
[1746547487106,0.8174817,94585.0,94584.0,0.2643517]
[1746547487416,0.8806817,94585.0,94584.0,0.2643517]
[1746547487804,0.2114839,94584.0,94583.0,0.4173]
[1746547488209,0.4526839,94584.0,94583.0,0.4173]
[1746547488512,0.4526839,94584.0,94583.0,0.6287862]
[1746547488911,0.4526839,94584.0,94583.0,2.1287862]
[1746547491309,0.4526839,94584.0,94583.0,1.9173]
[1746547492409,0.4526839,94584.0,94583.0,2.1287862]
[1746547495610,0.4526839,94584.0,94583.0,1.9173]
[1746547495814,0.2115063,94574.0,94573.0,0.4173]
[1746547496114,0.2115063,94574.0,94573.0,0.6288085]
[1746547496513,0.2728063,94574.0,94573.0,0.6288085]
[1746547497218,0.4508063,94574.0,94573.0,0.6288085]
[1746547499520,0.4836063,94574.0,94573.0,0.6288085]
[1746547501416,0.5504463,94574.0,94573.0,0.6288085]